{"text_format":"1","workbook":"xlsx","n_sheets":1,"sheets":["Cash Order Sheet"],"not_rendered":{"charts":0,"images":1,"macros":1,"external_links":0,"defined_names":1,"comments":1,"pivot_tables":0},"unopened":[],"bounds":{"document_bytes":16777216,"sheet_cells":100000,"rows_first":2000,"rows_last":500,"rows_between":2000,"halvings":0,"cell_chars":16384,"cell_head_chars":4096},"cells_cut":0,"cells_raw":0,"read":"whole","date_system":"1900"}

{"sheet":"Cash Order Sheet","index":0,"n_rows":35,"n_cols":20,"rows_kept":35,"cut":false,"hidden":false,"merged":[[34,0,34,3],[8,1,8,2],[15,1,15,2],[33,4,33,6],[0,4,0,6],[1,4,1,6],[0,0,0,2],[5,1,5,2],[6,1,6,2],[4,1,4,2],[30,4,30,6]]}
["Money Exchange Order Form",null,null,null,"Brigham Young University",null,null,{"$f":"+B5","v":"00:00:00"},{"$f":"+B7","v":"(Select From List)"},{"$f":"+E10","v":0},{"$f":"+E11","v":0},{"$f":"+E12","v":0},{"$f":"+E13","v":0},{"$f":"+E17","v":0},{"$f":"+E18","v":0},{"$f":"+E19","v":0},{"$f":"+E20","v":0},{"$f":"+E21","v":0},{"$f":"+E22","v":0},{"$f":"SUM(J1:S1)","v":0}]
["version 2",null,null,null,"Treasury Services",null,null,null,null,"(Select From List)"]
[null,null,null,null,null,null,null,null,null,"Blue Line Deli"]
[null,null,null,null,null,null,null,null,null,"Campus Accomodations"]
["Date",null,null,null,null,null,null,null,null,"Campus Floral"]
["Ordered By",null,null,null,null,null,null,null,null,"Campus Life"]
["Location/Department","(Select From List)",null,{"$f":"IF(B7=0,\"Must pick department from the drop down menu\", \"\")","v":""},null,null,null,null,null,"Cannon Dining"]
[null,null,null,null,null,null,null,null,null,"Concessions"]
["Currency Needed","Denomination",null,"Bills Requested","Amount Requested",null,null,null,null,"Continuing Education"]
["Twenties",20,null,null,{"$f":"+B10*D10","v":0},null,null,null,null,"Creamery on 9th East"]
["Tens",10,null,null,{"$f":"+B11*D11","v":0},null,null,null,null,"Creamery Outlet"]
["Fives",5,null,null,{"$f":"+B12*D12","v":0},null,null,null,null,"Food to Go"]
["Ones",1,null,null,{"$f":"+B13*D13","v":0},null,null,null,null,"Helaman Housing"]
[null,null,null,"Total currency requested",{"$f":"SUM(E10:E13)","v":0},null,null,null,null,"Heritage Housing"]
[null,null,null,null,null,null,null,null,null,"Laundry"]
["Coin Needed","Roll Value",null,"Rolls Requested","Amount Requested",null,null,null,null,"Legends Grille"]
["Dollars (Vending)",25,null,null,{"$f":"+B17*D17","v":0},null,null,null,null,"Marriott Center"]
["Half-Dollars (Concessions)",10,null,null,0,null,null,null,null,"MTC Barbershop"]
["Quarters",10,null,null,0,null,null,null,null,"MTC Business Office"]
["Dimes",5,null,null,0,null,null,null,null,"MTC Laundry"]
["Nickels",2,null,null,0,null,null,null,null,"Pendulum Court"]
["Pennies",0.5,null,null,0,null,null,null,null,"Print and Mail Services"]
[null,null,null,"Total coin requested",{"$f":"SUM(E17:E22)","v":0},null,null,null,null,"SAB Jamba Juice"]
[null,null,null,null,null,null,null,null,null,"Vending"]
[null,null,null,"Total Amount to Exchange",{"$f":"+E23+E14","v":0},null,null,null,null,"WSC"]
[null,null,null,null,null,null,null,null,null,"Wymount Housing"]
["Orders received by 9 a.m. will be delivered the same day",null,null,null,null,null,null,null,null,"Wyview Creamery"]
["Orders received after 9 a.m. will be delivered the next day",null,null,null,null,null,null,null,null,"Wyview Housing"]
["Exchange orders can be made at any time at the Department Deposit window"]
[]
["For use by Treasury Services",null,null,null,"Be sure to open Outlook before clicking"]
[]
[]
[null,null,null,null,"(please email this form to exchangeorder@byu.edu)"]
["To be signed by courier upon delivery                           Date"]